Cogmind - Beta 15 @@@ ROGUE MODE // 2025.08.03 @ 08:51:30 Player: Dadrick Result: Destroyed by D-53 Grenadier with Mini Grenade Launcher Performance ------------- Evolutions (0) 0 Regions Visited (2) 400 Robots Destroyed (25) 125 Value Destroyed (501) 501 Prototype IDs (2) 40 Alien Tech Used (0) 0 Bonus (0) 0 TOTAL SCORE: 1066 Bonus ------- None Cogmind --------- Core Integrity 0/250 Matter 207/300 Energy 98/100 System Corruption 2% Temperature Cool (1) Movement Treading (160) Location -10/Mines Parts ------- > --- POWER (1) -------- (None) > --- PROPULSION (2) --- Light Treads > --- UTILITY (2) ------ Medium Storage Unit > --- WEAPON (2) ------- Light Assault Rifle Light Assault Rifle > --- INVENTORY (10) --- Light Ion Engine Light Treads Light Treads Improved Heat Sink Structural Scanner Small Laser Grenade Launcher Grenade Launcher Datajack Mining Laser Peak State ------------ > --- POWER ------------ Light Nuclear Core > --- PROPULSION ------- Light Treads Light Treads > --- UTILITY ---------- Small Storage Unit Seismic Detector > --- WEAPON ----------- Small Laser Particle Gun > --- INVENTORY -------- Light Ion Engine Light Ion Engine Light Ion Engine Light Treads Aluminum Leg Improved Heat Sink Structural Scanner Datajack [Rating: 11] Favorites ----------- Power Light Ion Engine Engine Light Ion Engine Power Core Light Nuclear Core Propulsion Light Treads Treads Light Treads Utility Seismic Detector Device Seismic Detector Storage Small Storage Unit Weapon Small Laser Energy Gun Small Laser Ballistic Gun Assault Rifle Launcher Grenade Launcher Special Weapon Mining Laser Build | -11 -10 -10 ------- Run | Yrd Mat Min Slots Evolved . | . . . Power . | . . . Propulsion . | . . . Utility . | . . . Weapon . | . . . Parts Attached 18 | 8 8 2 Power 2 | 1 1 . Engine 1 | 1 . . Core 1 | . 1 . Reactor . | . . . Propulsion 2 | 2 . . Treads 2 | 2 . . Leg . | . . . Wheel . | . . . Hover . | . . . Flight . | . . . Utility 3 | 2 1 . Device 1 | 1 . . Storage 2 | 1 1 . Processor . | . . . Hackware . | . . . Protection . | . . . Artifact . | . . . Weapon 11 | 3 6 2 Energy Gun 5 | 2 3 . Energy Cannon . | . . . Ballistic Gun 4 | 1 1 2 Ballistic Cannon . | . . . Launcher 1 | . 1 . Special Weapon 1 | . 1 . Impact Weapon . | . . . Slashing Weapon . | . . . Piercing Weapon . | . . . Special Melee Weapon . | . . . Unidentified Prototypes . | . . . Parts Lost 6 | 1 2 3 Power 1 | . . 1 Propulsion 1 | . . 1 Utility 1 | . . 1 Weapon 3 | 1 2 . Highest Loss Streak 3 | 1 1 3 To Critical Strikes . | . . . Average Backups 3 | 1 7 10 Power 1 | . 2 1 Propulsion . | . 1 2 Utility . | . 1 2 Weapon 1 | . 1 4 Tool/Special . | . . . Unused Backups 11 | . 4 7 Power 2 | . 1 1 Propulsion 4 | . 2 2 Utility 3 | . 1 2 Weapon 1 | . . 1 Tool/Special 1 | . . 1 Average Slot Usage (%) 99 | . 99 95 Engine 4 | . 5 . Core 9 | . 8 14 Treads 28 | . 28 28 Device 13 | . 14 10 Storage 14 | . 14 14 Energy Gun 20 | . 22 . Ballistic Gun 5 | . 4 22 Special Weapon 1 | . 1 . Peak Build Rating 11 | 7 11 10 Average Rating 7 | 6 9 9 On Entrance 5 | . 7 10 Naked Turns . | . . . Heaviest Build 20 | 12 20 20 Greatest Support 40 | 40 40 40 Greatest Overweight (x) . | . . . Average Overweight (x) . | . . . Largest Inventory Capacity 10 | 8 10 10 Average Capacity 8 | 7 9 10 Most Carried 10 | 2 10 10 Average Carried 3 | 1 7 9 Final Capacity 10 | 8 10 10 Final Carried 10 | 1 10 10 Class Distribution -------------------- 98% | Mutant Dominant Class ---------------- Mutant | -10/Materials Scavenger-Mutant | -10/Mines Resources | -11 -10 -10 ----------- Run | Yrd Mat Min Matter Collected 439 | 289 126 24 Remotely . | . . . Salvage Created 572 | 164 356 52 Parts 41 | 8 22 11 Haulers Intercepted . | . . . Recyclers Shooed 2 | . 2 . Parts Field Recycled . | . . . Retrieved Matter . | . . . Parts Self-Destructed . | . . . Prevented . | . . . Kills | -11 -10 -10 ------- Run | Yrd Mat Min Combat Hostiles Destroyed 19 | 1 12 6 Guns 8 | 1 6 1 AOE 11 | . 6 5 Classes Destroyed 6 | 3 3 . Tunneler 2 | 2 . . Recycler 1 | 1 . . Watcher 3 | . 3 . Swarmer 12 | . 6 6 Grunt 6 | . 6 . Demolisher 1 | 1 . . Best Kill Streak 8 | 3 8 3 Combat Bots Only 6 | 1 6 3 Max Kills in Single Turn 4 | 1 4 2 Gunslinging . | . . . Exploded 3 | . 3 2 Melee . | . . . Uniques/NPCs Destroyed . | . . . Combat | -11 -10 -10 -------- Run | Yrd Mat Min Hostile Shots Fired 66 | 8 41 17 Missed 14 | . 11 3 Hits 52 | 8 30 14 Projectile 52 | 8 30 14 AOE 12 | 8 . 4 Critical Strikes 1 | . 1 . Damage Taken 927 | 279 357 291 Core 254 | 41 77 136 Absorbed by Shields . | . . . Core Remaining (%) 83 | 83 . . Volleys Fired 44 | 6 32 6 Largest 2 | 2 2 2 Hottest 105 | 80 105 40 Shots Fired 75 | 11 55 9 Gun 65 | 11 48 6 Cannon . | . . . Launcher 6 | . 3 3 Special 4 | . 4 . Kinetic 10 | 4 . 6 Thermal 59 | 7 52 . Explosive 6 | . 3 3 Electromagnetic . | . . . Robot Hit Streak 9 | 5 9 1 Robot Miss Streak 2 | 1 2 1 Penetration Max . | . . . Secondary Targets . | . . . Shots Hit Robots 45 | 8 34 3 Core Hits 35 | 6 21 8 Critical Kills . | . . . Critical Parts Destroyed . | . . . Critical Strikes . | . . . Melee Attacks . | . . . Impact . | . . . Slashing . | . . . Piercing . | . . . Sneak Attacks . | . . . Combat Hostiles . | . . . Follow-up Attacks . | . . . Damage Inflicted 950 | 94 652 204 Guns 513 | 94 395 24 Cannons . | . . . Explosions 437 | . 257 180 Melee . | . . . Ramming . | . . . Kinetic 64 | 40 . 24 Thermal 449 | 54 395 . Explosive 437 | . 257 180 Electromagnetic . | . . . Impact . | . . . Slashing . | . . . Piercing . | . . . Highest Corruption 2 | . 2 2 Average Corruption 2 | . 2 2 Corruption Purged . | . . . Corruption Blocked . | . . . Effects 4 | . 3 1 Message Errors 1 | . 1 . Matter Fused 1 | . . 1 Data Loss (minor) 1 | . 1 . Misfires 1 | . 1 . Overload Shots . | . . . Overflow Damage 15 | . 15 . Projectiles . | . . . Explosions 15 | . 15 . Melee . | . . . Knockbacks . | . . . Impact . | . . . Kinetic . | . . . Secondary . | . . . Self-Inflicted Damage 28 | . 16 12 Shots 2 | . 1 1 Rammed . | . . . Targets Rammed . | . . . Kicked . | . . . Crushed . | . . . Highest Temperature 241 | 18 241 4 Average Temperature 82 | 12 86 2 Received Heat Transfer 153 | . 153 . Siege Activations . | . . . Martial Activations . | . . . Shielding Activations . | . . . Robots Disrupted . | . . . Combat Hostiles . | . . . Robots Corrupted . | . . . Combat Hostiles . | . . . Parts Fried . | . . . Impact Corruptions . | . . . Robots Melted . | . . . Combat Hostiles . | . . . Parts Melted 3 | . 3 . Heat Transferred 1059 | 125 934 . Parts Sabotaged . | . . . Parts Stolen . | . . . Parts Stripped . | . . . Power Chain Reactions . | . . . Alert | -11 -10 -10 ------- Run | Yrd Mat Min Maximum Alert Level 1 | . 1 . Low Security (%) 99 | 100 94 100 Level 1 . | . 5 . Level 2 . | . . . Level 3 . | . . . Level 4 . | . . . Level 5 . | . . . High Security . | . . . Max Security . | . . . Peak Influence 252 | 30 252 151 Initial 13 | . 13 12 Average 9 | . 43 99 Influence Increases 662 | 45 438 179 Destroy 0b10 Robot/C 380 | 20 240 120 Destroy 0b10 Robot/NC 30 | 15 15 . Destroy Leader 86 | 10 56 20 Successful Hack 22 | . 22 . Disable Machine 45 | . 45 . Destroy Structure 39 | . 15 24 Lose Combat Pursuer 60 | . 45 15 Influence Decreases 531 | 25 427 79 Entered New Map 26 | . 7 19 Time Decay 306 | 15 261 30 Lost Part 49 | 10 9 30 Purge Threat 150 | . 150 . Squads Dispatched 2 | . 2 . Investigation 2 | . 2 . Extermination . | . . . Reinforcement . | . . . Assault . | . . . Garrison . | . . . Intercept . | . . . Searches Triggered . | . . . Construction Impeded . | . . . Haulers Reinforced . | . . . Active Scanning Responses . | . . . Cargo Convoy Interrupts . | . . . Stealth | -11 -10 -10 --------- Run | Yrd Mat Min Distress Signals 3 | . 3 . Communications Jammed . | . . . Distress Signals . | . . . Times Spotted 28 | 2 17 9 Peak Tracking Total 7 | 2 7 5 Tactical Retreats 4 | . 3 1 Traps | -11 -10 -10 ------- Run | Yrd Mat Min Traps Triggered 2 | . 2 . Indirectly . | . . . Trap Hack Attempts . | . . . Triggered . | . . . Disarmed . | . . . Reprogrammed . | . . . Reused . | . . . Traps Extracted . | . . . Installed . | . . . Triggered . | . . . Machines | -11 -10 -10 ---------- Run | Yrd Mat Min Machines Disabled 3 | . 3 . Max in Single Turn 2 | . 2 . Machines Repaired . | . . . Machines Dismantled . | . . . Machines Sabotaged . | . . . Overloaded Fab Kills . | . . . Hacking | -11 -10 -10 --------- Run | Yrd Mat Min Machines Accessed 5 | . 5 . Terminals 5 | . 5 . Fabricators . | . . . Repair Stations . | . . . Recycling Units . | . . . Scanalyzers . | . . . Garrison Access . | . . . Total Hacks 25 | . 25 . Successful 6 | . 6 . Failed 19 | . 19 . Catastrophic 2 | . 2 . Database Lockouts . | . . . Manual 16 | . 16 . Terminals 25 | . 25 . Fabricators . | . . . Repair Stations . | . . . Recycling Units . | . . . Scanalyzers . | . . . Garrison Access . | . . . Terminal Hacks 5 | . 5 . Prototype ID Bank 1 | . 1 . Terminal Index 1 | . 1 . Alert Level 1 | . 1 . Unreport Threat 1 | . 1 . Registered Components 1 | . 1 . Fabricator Hacks . | . . . Repair Station Hacks . | . . . Recycling Unit Hacks . | . . . Scanalyzer . | . . . Garrison Access Hacks . | . . . Unauthorized Hacks 1 | . 1 . Terminals 1 | . 1 . Botnet 1 | . 1 . Fabricators . | . . . Repair Stations . | . . . Recycling Units . | . . . Scanalyzers . | . . . Garrison Access . | . . . Data Cores Recovered . | . . . Used . | . . . Hacking Detections 5 | . 5 . Full Trace Events 1 | . 1 . Feedback Events . | . . . Feedback Blocked . | . . . Robot Schematics Acquired . | . . . Robots Built . | . . . Authchips . | . . . Time . | . . . Total Robot Build Rating . | . . . Part Schematics Acquired . | . . . Parts Built . | . . . Authchips . | . . . Time . | . . . Total Part Build Rating . | . . . Parts Repaired . | . . . Time . | . . . Parts Recycled . | . . . Recycled Matter . | . . . Retrieved Matter . | . . . Retrieved Components . | . . . Parts Scanalyzed . | . . . Part Schematics Acquired . | . . . Parts Damaged . | . . . Bothacking | -11 -10 -10 ------------ Run | Yrd Mat Min Used RIF Installer . | . . . Robots Hacked . | . . . Non-combat . | . . . Combat . | . . . Robot Hacks Applied . | . . . Relay Couplers Released . | . . . Fabnet Peak Effective % . | . . . Robots Rewired . | . . . Allies Hacked . | . . . Hacks Repelled . | . . . Allies | -11 -10 -10 -------- Run | Yrd Mat Min Total Allies . | . . . Largest Group . | . . . Highest-Rated Group . | . . . Highest-Rated Ally . | . . . Total Orders . | . . . Ally Attacks . | . . . Total Damage . | . . . Kills . | . . . Allies Corrupted . | . . . Allies Melted . | . . . Intel | -11 -10 -10 ------- Run | Yrd Mat Min Active Infowar (turns) 4616 | 3692 881 43 Seismic 4616 | 3692 881 43 Robot Analysis Total . | . . . Derelict Logs Recovered 1 | . . 1 Drone Launches . | . . . Drone Recoveries . | . . . Exploration | -11 -10 -10 ------------- Run | Yrd Mat Min Turns Passed 4708 | 3757 881 70 Spaces Moved 1090 | 629 431 30 Core 6 | 6 . . Treads 1084 | 623 431 30 Legs . | . . . Wheels . | . . . Hover . | . . . Flight . | . . . Fastest Speed 50 | 50 160 160 Average Speed 159 | 158 160 160 Slowest Speed 160 | 160 160 160 Overloaded Moves . | . . . Propulsion Burnouts . | . . . Robots Hopped . | . . . Potential Cave-ins . | . . . Cave-ins Triggered . | . . . Exploration Rate (%) 54 | 78 73 11 Regions Visited 2 Branch Regions 1 Pre-discovered Areas . | . . . Known Exits Taken . | . . . Unknown Exits Taken 2 | 1 1 . Scrap Searched . | . . . Spaces Dug 12 | . 4 8 Terrain Destroyed 41 | . 14 27 Melee . | . . . Projectile 4 | . 4 . AOE 37 | . 10 27 Terrain Rammed . | . . . Walls Destroyed . | . . . Machines Disabled . | . . . Actions | -11 -10 -10 --------- Run | Yrd Mat Min Total 3976 | 3371 561 44 Wait 2790 | 2726 64 . Move 1088 | 628 430 30 Hop . | . . . Pick Up 17 | 2 14 1 Fast Attach 8 | 7 1 . Attach 3 | 1 2 . Detach 1 | . 1 . Swap 16 | 1 10 5 Drop 9 | . 7 2 Fire 44 | 6 32 6 Melee . | . . . Ram . | . . . Kick . | . . . Crush . | . . . Escape Stasis . | . . . Rewire . | . . . Trap . | . . . Miscellaneous . | . . . Route ------- -11/Scrapyard -10/Materials (discovered 4 exits: [*Mat x2] / [*Min x2]) -10/Mines (discovered 1 exit: Exi) History --------- Turn | Location | Event 24 | -11/Scrapyard | Discovered new exit (range 16) 3740 | -11/Scrapyard | Assembled infested the area 3758 | -11/Scrapyard | Entered Materials 3769 | -10/Materials | Build established: Mutant 3848 | -10/Materials | Discovered new exit (range 16) 4114 | -10/Materials | Discovered new exit (range 8) 4218 | -10/Materials | Discovered new exit (range 9) 4431 | -10/Materials | Discovered new exit (range 8) 4639 | -10/Materials | Entered Mines 4670 | -10/Mines | Assembled infested the area 4675 | -10/Mines | Assisted by a Guerilla fighting off Assembled 4681 | -10/Mines | Identified exit to Exiles 4682 | -10/Mines | Core integrity fell below 50% 4705 | -10/Mines | Core integrity fell below 20% 4709 | -10/Mines | Destroyed by D-53 Grenadier with Mini Grenade Launcher Last Messages --------------- 04670_ ALERT: Infestation in the mines, dispatching Demolisher response squad. 04675_ A derelict emerges from the shadows: "You need to get out of here! I've been tracking a group of Assembled to figure out where they're coming from, and they're closing on this area, come on!" 04678_ C-30 ARC bursts open, deploying its payload. 04678_ D-53 Grenadier unfolds itself. 04681_ Acquired derelict log, extracted data. Loading 1 Mines exit... 04682_ Seismic Detector destroyed. 04688_ S-10 Pest destroyed. 04692_ System corrupted: Matter fused (-7). 04692_ U-05 Engineer builds a Wall. 04694_ Acquired 3 matter. 04695_ Acquired 12 matter. 04696_ U-05 Engineer lays Concrete. 04704_ Lgt. Nuclear Core destroyed. 04704_ U-05 Engineer lays Concrete. 04706_ Lgt. Treads destroyed. 04706_ U-05 Engineer builds a Wall. Map ----- +----------------------------------------------------+ | | | | | | | | | | | | | ?????????????????????????????????????????????? | | ?????????????????????????????????????????????? | | ?????????????????????????????????????????????? | | ??????????????????????????????????###????????? | | ????????????????????????????????## ##???????? | | ????????????? #??????????????### ##???????? | | ????????????? #?????????????# #???????? | | ????????????? #?###????????# [ #???????? | | ?????????????? ## ????????# %= #???????? | | ??????????????? ????????# *[ #????????? | | ??????????????? ????????## = #????????? | | ???????????????? ????##### ###????????? | | ????????????????# #???## #??????????? | | ???????????????## ##??# [##??????????? | | ???????????????# #### ##???????????? | | ???????????????# ### ##????????????? | | ???????????????# #?#### #?????????????? | | ???????????????# ###### #?????????????? | | ???????????????## # ## #?????????????? | | ???????????????# @ = # #?????????????? | | ???????????????# du## ######????????? | | ??????????????# # # #????????? | | ?????????????# ## # ##### ###### #????????? | | ?????????????### ?# d?? #???????????????? | | ???????????????#??# ######## #???????????????? | | ??????????????????# ???????# #???????????????? | | ??????????????????# ???????# #???????????????? | | ?????????????????? ??????? #???????????????? | | ??????????????????##??????? ???????????????? | | ??????????????????????????? ???????????????? | | ???????????????????????????# ???????????????? | | ????????????????????????????# ???????????????? | | ????????????????????????????? ???????????????? | | ????????????????????????????? ???????????????? | | ?????????????????????????????%???????????????? | | ?????????????????????????????#???????????????? | | ?????????????????????????????????????????????? | | ?????????????????????????????????????????????? | | ?????????????????????????????????????????????? | | ?????????????????????????????????????????????? | | ?????????????????????????????????????????????? | | ?????????????????????????????????????????????? | | ?????????????????????????????????????????????? | | ?????????????????????????????????????????????? | +----------------------------------------------------+ Best States ------------- Heat Dissipation 25 Energy Generation 14 Energy Capacity 160 Matter Stores 300 Matter Capacity 300 Sight Range 16 Terrain Scan Density 10 Evasion (%) 40 Recoil Reduction 2 Item Schematics ----------------- None Robot Schematics ------------------ None Fabricated ------------ Nothing Repaired ---------- Nothing Alien Tech Used ----------------- None Achievements -------------- Curiosity Killed The Cat Challenges ------------ None Game ------ Seed ScrapMachineShearcannon Manual? 0 Play Time 00:15:30 Cumulative 235.6 hours Start 2025.08.03 @ 08:36:29 End 2025.08.03 @ 08:51:30 Sessions 1 Manual Loads 0 Difficulty Rogue Special Mode None Game No. 115 Rogue 94 Adventurer 21 Explorer 0 Win Type - Total 11 Types 8/0/2/1/0/0/0/0/0/0 Lore% 46 Gallery% 64 Achievement% 60 Wizard Run 0 Options --------- Layout 1 ASCII 0 Keyboard 0 Movement Numpad Keybinds 0 Fullscreen 2 Font 32/SmallcapsGlow Map View 77x35 Zoom Use 0% Tactical HUD 1 Map Filters NONE Filters NONE Steam 1 RUN: 3e66687a-8e6d-40d3-8062-05f655167683